bitfinex-derivatives/quotes_ETHF0:USTF0_20241023
["timestamp","ask_amount","ask_price","bid_price","bid_amount"]
[1729713245356,0.39835,2513.0,2512.4,5.30619]
[1729713245557,44.98436613,2513.1,2512.8,0.39837]
[1729713245874,8.0473907,2512.9,2512.4,4.3101]
[1729713246159,0.3984,2512.7,2512.4,4.3101]
[1729713246363,0.3984,2512.7,2512.6,0.39841]
[1729713246568,0.39838,2512.8,2512.6,0.39841]
[1729713246753,4.14387768,2512.7,2512.6,0.39841]
[1729713248261,0.39838,2512.8,2512.4,4.3101]
[1729713248565,4.47169503,2512.7,2512.6,0.3984]
[1729713248858,0.39839,2512.7,2512.6,0.3984]
[1729713249266,4.45235468,2512.7,2512.6,0.3984]
[1729713249670,0.39838,2512.8,2512.7,0.39839]
[1729713249863,0.39837,2512.9,2512.8,0.39837]
[1729713250169,0.39837,2512.9,2512.4,4.3101]
[1729713250170,4.55298492,2512.9,2512.4,4.3101]
[1729713250464,3.83,2512.7,2512.4,3.2078]
[1729713250857,4.39379403,2512.6,2512.4,3.60623]
[1729713251059,4.79221403,2512.6,2512.4,3.60623]
[1729713251260,0.39842,2512.5,2512.4,3.60623]
[1729713251466,4.79221403,2512.5,2512.4,3.60623]
[1729713251863,0.39842,2512.5,2512.4,3.60623]
[1729713252067,4.86431028,2512.5,2512.4,3.60623]
[1729713252367,4.46589028,2512.5,2512.4,3.60623]
[1729713252761,0.39842,2512.6,2512.5,0.39842]
[1729713253162,4.75850302,2512.6,2512.5,0.39842]
[1729713253860,4.36008302,2512.6,2512.4,3.2078]
[1729713254057,0.39842,2512.5,2512.4,3.60623]
[1729713254261,0.39842,2512.5,2512.4,3.2078]
[1729713254463,0.39845,2512.4,2512.3,0.39844]
[1729713254766,4.80502807,2512.4,2512.3,0.39844]
[1729713257262,4.80502807,2512.4,2512.1,3.2078]
[1729713257263,4.40657807,2512.4,2512.1,3.2078]
[1729713257464,0.39847,2512.3,2512.2,0.39846]
[1729713257661,0.39845,2512.4,2512.3,0.39844]
[1729713257866,3.2078,2512.9,2512.1,3.2078]
[1729713257867,41.79584,2513.1,2512.2,0.99618]
[1729713258066,41.79584,2513.1,2512.3,0.99612]
[1729713258266,4.32056274,2512.8,2512.7,0.39838]
[1729713258571,0.39837,2512.9,2512.8,0.39838]
[1729713258967,4.94467485,2512.9,2512.8,0.39838]
[1729713259964,0.39839,2512.8,2512.7,0.39838]
[1729713260368,4.69799105,2512.8,2512.7,0.39838]
[1729713260565,4.29960105,2512.8,2512.7,0.39838]
[1729713260963,40.8,2513.1,2512.9,0.39835]
[1729713260964,4.76533892,2513.0,2512.9,0.39835]
[1729713261164,0.39835,2513.0,2512.9,0.39835]
[1729713261464,4.76533892,2513.0,2512.9,0.39835]
[1729713265070,0.39837,2512.9,2512.8,0.39836]
[1729713265475,0.99576,2513.3,2512.8,0.39836]
[1729713265476,3.2078,2513.9,2512.9,4.97509]
[1729713265777,4.28733924,2513.5,2513.2,3.2078]
[1729713266169,41.79547,2514.0,2513.5,0.39825]
[1729713266372,0.39824,2513.7,2513.6,0.39824]
[1729713266669,0.39823,2513.8,2513.7,0.39823]
[1729713266875,0.39824,2513.7,2513.6,0.39824]
[1729713267178,4.19825779,2513.7,2513.6,0.39824]
[1729713267874,4.19825779,2513.7,2513.3,1.1418]
[1729713268075,4.19825779,2513.7,2513.6,0.39825]
[1729713268271,3.80001779,2513.7,2513.6,0.39825]
[1729713268576,4.98078493,2513.8,2513.7,0.39823]
[1729713268778,4.98078493,2513.8,2513.3,1.1418]
[1729713269077,3.60602,2513.9,2513.7,0.39823]
[1729713269473,4.98077493,2513.8,2513.7,0.39823]
[1729713269679,0.39823,2513.7,2513.6,0.39824]
[1729713269976,4.83873166,2513.7,2513.6,0.39824]
[1729713270176,0.39825,2513.6,2513.5,3.60606]
[1729713270475,7.94875166,2513.6,2513.5,0.39826]
[1729713270777,4.83875166,2513.6,2513.5,0.39826]
[1729713271276,0.39827,2513.5,2513.4,0.39827]
[1729713271682,4.69116434,2513.5,2513.4,0.39827]
[1729713272276,8.27129434,2513.5,2513.2,3.2078]
[1729713272477,3.11,2513.4,2512.9,3.2078]
[1729713272673,3.11,2513.1,2512.9,3.2078]
[1729713273082,45.16498389,2513.0,2512.9,3.60616]
[1729713274671,45.16498389,2513.0,2512.9,0.39836]
[1729713275177,45.16498389,2513.0,2512.9,3.60616]
[1729713275685,45.56332389,2513.0,2512.9,3.60616]
[1729713275979,45.16498389,2513.0,2512.9,3.60616]
[1729713276184,4.36498389,2513.0,2512.9,3.60616]
[1729713276880,45.16498389,2513.0,2512.9,3.60616]
[1729713278979,4.36498389,2513.0,2512.9,3.60616]
[1729713279381,41.19833,2513.1,2513.0,0.39834]
[1729713279780,45.54149888,2513.1,2513.0,0.39834]
[1729713279980,4.34316888,2513.1,2513.0,0.39834]
[1729713283785,43.2007,2513.4,2512.9,3.2078]
[1729713283786,4.10579,2513.2,2512.9,3.2078]
[1729713283990,4.10579,2513.2,2512.6,5.5784]
[1729713284198,4.45520429,2513.1,2512.7,0.39839]
[1729713284489,4.45520429,2513.1,2512.6,5.5784]
[1729713284686,0.39835,2513.0,2512.9,0.39835]
[1729713285090,0.99575,2513.3,2512.6,5.5784]
[1729713285091,7.57588768,2513.2,2512.6,5.5784]
[1729713285292,7.57588768,2513.2,2512.8,0.39837]
[1729713285293,0.39837,2512.9,2512.8,0.39837]
[1729713285788,4.86425768,2512.9,2512.8,0.39837]
[1729713286188,0.39833,2513.2,2513.1,0.39832]
[1729713286586,43.2007,2513.4,2513.3,0.3983]
[1729713286587,1.1498,2513.4,2513.3,0.3983]
[1729713287190,0.39826,2513.6,2513.5,0.39826]
[1729713287494,0.39826,2513.6,2513.4,0.39827]
[1729713287495,5.01779398,2513.5,2513.4,0.39827]
[1729713287788,0.39827,2513.5,2513.4,0.39827]
[1729713288487,0.39826,2513.6,2513.5,0.39825]
[1729713288896,4.91080351,2513.6,2513.5,0.39825]
[1729713289091,0.39828,2513.5,2513.4,0.39827]
[1729713289396,4.91079351,2513.6,2513.5,0.39826]
[1729713289695,3.2078,2514.4,2513.5,10.2962]
[1729713289882,3.2078,2514.4,2514.2,0.39815]
[1729713289883,1.27,2514.3,2514.2,0.39815]
[1729713290082,7.63153703,2514.4,2513.8,7.31333]
[1729713290289,3.60592,2514.4,2514.3,0.39814]
[1729713290686,8.02965703,2514.4,2514.3,0.39814]
[1729713291287,7.63153703,2514.4,2514.3,0.39814]
[1729713291482,8.02965703,2514.4,2514.3,0.39814]
[1729713291896,0.39814,2514.3,2514.2,0.39815]
[1729713292092,7.63153703,2514.4,2514.3,0.39814]
[1729713293803,7.63153703,2514.4,2513.8,4.20333]
[1729713293991,0.39814,2514.3,2514.2,0.39815]
[1729713294591,7.63153703,2514.4,2513.8,4.20333]
[1729713294899,0.39818,2514.1,2514.0,0.39818]
[1729713295089,4.47344961,2514.3,2513.8,3.2078]
[1729713295290,0.39819,2514.0,2513.9,0.39819]
[1729713296093,0.39818,2514.1,2514.0,0.39818]
[1729713296402,0.3982,2514.0,2513.9,0.3982]
[1729713297495,0.39818,2514.1,2514.0,0.39818]
[1729713298199,0.39819,2514.0,2513.9,0.39818]
[1729713299096,4.47344961,2514.3,2513.8,3.2078]
[1729713299306,4.87159961,2514.3,2514.2,0.39815]
[1729713299595,4.87159961,2514.3,2513.8,4.20333]
[1729713299596,0.39816,2514.2,2514.1,0.39816]
[1729713300201,0.39816,2514.2,2513.6,2.9538]
[1729713300202,4.47344961,2514.3,2514.0,3.2078]
[1729713300403,4.87158961,2514.3,2514.2,0.39815]
[1729713300593,0.39814,2514.3,2514.2,0.39815]
[1729713300789,4.54982447,2514.3,2514.2,0.39815]
[1729713301701,4.54982447,2514.3,2514.1,0.39816]
[1729713301702,0.39816,2514.2,2514.1,0.39816]
[1729713302392,0.39817,2514.1,2514.0,3.2078]
[1729713302705,4.57966516,2514.2,2513.7,3.2078]
[1729713302895,0.39818,2514.1,2514.0,0.39818]
[1729713303901,0.39821,2513.9,2513.8,0.3982]
[1729713304092,0.39822,2513.8,2513.7,3.60602]
[1729713304491,4.74317112,2513.8,2513.7,3.60602]
[1729713305297,5.34051112,2513.8,2513.2,4.4042]
[1729713305502,0.99571,2513.4,2512.8,3.2078]
[1729713305797,0.39836,2512.9,2512.8,3.60617]
[1729713305999,3.83,2513.1,2512.9,0.39834]
[1729713306000,0.39835,2513.0,2512.9,0.39834]
[1729713306196,0.39831,2513.2,2513.1,0.39832]
[1729713306397,1.1936,2513.3,2513.2,0.39831]
[1729713306791,5.44226015,2513.3,2513.2,0.39831]
[1729713307601,5.44226015,2513.3,2512.8,4.20373]
[1729713307798,0.39832,2513.2,2513.1,0.39832]
[1729713308002,5.44226015,2513.3,2512.8,4.20373]
[1729713308198,0.39833,2513.1,2512.9,0.39836]
[1729713308399,0.39833,2513.1,2513.0,0.39834]
[1729713308805,0.39835,2513.0,2512.9,0.39834]
[1729713309911,0.39835,2513.0,2512.8,3.60617]
[1729713309912,0.39836,2512.9,2512.8,3.60617]
[1729713310206,0.39836,2512.9,2512.8,3.60618]
[1729713310207,4.77305183,2512.9,2512.8,3.60618]
[1729713310408,4.77305183,2512.9,2512.8,3.2078]
[1729713310608,4.77305183,2512.9,2512.8,3.60618]
[1729713310811,4.77305183,2512.9,2512.8,3.2078]
[1729713311001,8.75225183,2512.9,2512.8,3.2078]
[1729713312106,8.75225183,2512.9,2512.8,3.60618]
[1729713312319,4.77305183,2512.9,2512.8,3.2078]
[1729713312811,4.77305183,2512.9,2512.8,3.60618]
[1729713312999,4.77305183,2512.9,2512.8,3.2078]
[1729713314404,7.88305183,2512.9,2512.8,3.2078]
[1729713314607,7.88305183,2512.9,2512.5,0.39842]
[1729713314608,11.46389183,2512.9,2512.5,0.39842]
[1729713314810,0.39842,2512.5,2512.4,3.60623]
[1729713315617,4.57903262,2512.5,2512.4,3.2078]
[1729713315812,0.9961,2512.4,2512.0,0.39849]
[1729713316112,0.39852,2512.0,2511.9,0.39851]
[1729713316315,3.50849,2512.1,2512.0,0.3985]
[1729713316618,8.05228841,2512.1,2512.0,0.3985]
[1729713317430,7.65379841,2512.1,2512.0,0.3985]
[1729713318114,8.05228841,2512.1,2512.0,0.3985]
[1729713318309,8.05228841,2512.1,2511.7,4.3897]
[1729713318310,0.39852,2512.0,2511.9,0.39851]
[1729713318511,8.05229841,2512.1,2512.0,0.3985]
[1729713318710,0.39851,2512.0,2511.9,0.3985]
[1729713318916,7.84489118,2512.1,2512.0,0.3985]
[1729713319320,0.3985,2512.1,2512.0,0.3985]
[1729713319510,4.73489118,2512.1,2512.0,0.3985]
[1729713320012,0.39852,2512.0,2511.9,0.39851]
[1729713320213,3.50852,2512.0,2511.9,0.39851]
[1729713320407,7.94749853,2512.0,2511.9,0.39851]
[1729713320918,4.43897853,2512.0,2511.8,0.39852]
[1729713321109,7.54897853,2512.0,2511.7,3.2078]
[1729713321310,3.11,2511.8,2511.5,0.39858]
[1729713321523,0.39857,2511.6,2511.5,0.39858]
[1729713321812,7.68756027,2511.6,2511.0,0.39866]
[1729713322010,0.39867,2511.0,2510.9,0.39868]
[1729713322205,3.11,2511.1,2510.8,1.53478]
[1729713322420,3.11,2511.1,2510.8,0.39868]
[1729713322622,0.39868,2510.9,2510.8,0.39868]
[1729713322817,4.57756027,2511.0,2510.6,1.189]
[1729713323007,3.11,2511.1,2510.6,1.189]
[1729713323008,0.3987,2510.8,2510.7,0.3987]
[1729713323317,4.08212949,2510.8,2510.7,0.3987]
[1729713323718,4.08212949,2510.8,2510.6,1.58772]
[1729713323908,4.08212949,2510.8,2510.7,0.39871]
[1729713324111,4.08212949,2510.8,2510.6,1.189]
[1729713324112,3.68342949,2510.8,2510.6,1.189]
[1729713324512,0.39871,2510.7,2510.6,1.189]
[1729713324716,3.68342949,2510.8,2510.6,1.189]
[1729713324917,4.87149652,2510.7,2510.6,1.58772]
[1729713325117,4.87148652,2510.8,2510.6,1.58772]
[1729713325520,4.47278652,2510.7,2510.6,1.58772]
[1729713325821,4.36033842,2510.8,2510.7,0.3987]
[1729713326208,0.39869,2510.9,2510.7,0.3987]
[1729713326611,4.36033842,2510.8,2510.7,0.3987]
[1729713327414,3.50865,2511.1,2511.0,0.39866]
[1729713327817,7.79386903,2511.1,2510.6,1.189]
[1729713328017,7.79387903,2511.1,2510.9,0.39867]
[1729713328416,0.39866,2511.0,2510.9,0.39867]
[1729713328620,0.39866,2511.0,2510.8,3.60648]
[1729713328917,0.39866,2511.0,2510.9,0.39868]
[1729713329224,7.39521903,2511.1,2510.9,0.39868]
[1729713329423,7.79387903,2511.1,2510.9,0.39868]
[1729713329615,0.39866,2511.0,2510.9,0.39868]
[1729713329921,7.39521903,2511.1,2511.0,0.39866]
[1729713330123,7.39521903,2511.1,2510.8,3.2078]
[1729713330309,3.50868,2510.9,2510.8,3.60649]
[1729713330716,7.57705919,2510.9,2510.8,3.60649]
[1729713331116,7.97573919,2510.9,2510.8,3.2078]
[1729713331615,11.95813919,2510.9,2510.8,3.2078]
[1729713333721,7.97573919,2510.9,2510.8,3.2078]
[1729713335427,4.46705919,2510.9,2510.8,3.60649]
[1729713335724,3.50868,2510.9,2510.8,3.2078]
[1729713336025,7.78890184,2510.9,2510.8,3.2078]
[1729713338324,11.77130184,2510.9,2510.8,3.2078]
[1729713338628,0.39874,2510.6,2510.5,0.39874]
[1729713338818,8.38692184,2510.9,2510.5,0.39874]
[1729713339026,0.39874,2510.6,2510.5,0.39874]
[1729713339725,3.11,2510.7,2510.6,0.39872]
[1729713339726,3.50872,2510.7,2510.6,0.39872]
[1729713339919,3.11,2510.9,2510.6,3.2078]
[1729713340119,0.3987,2510.8,2510.7,0.39869]
[1729713340418,4.21766097,2510.8,2510.5,3.2078]
[1729713340619,0.39872,2510.7,2510.6,0.39872]
[1729713340816,3.50872,2510.7,2510.6,0.39872]
[1729713341033,7.75586869,2510.7,2510.6,0.39872]
[1729713341330,0.39872,2510.6,2510.5,3.60653]
[1729713342520,0.39872,2510.6,2510.5,3.2078]
[1729713342822,0.39872,2510.6,2510.5,3.60654]
[1729713343232,0.39872,2510.6,2510.5,3.2078]
[1729713343622,4.79490003,2510.6,2510.5,3.2078]
[1729713343933,0.39878,2510.3,2510.2,0.39877]
[1729713344233,3.50878,2510.3,2510.2,0.39877]
[1729713344524,0.39879,2510.2,2510.1,4.8309]
[1729713344718,3.50878,2510.3,2510.2,0.39879]
[1729713344918,3.11,2510.3,2510.2,0.39879]
[1729713345524,3.11,2510.3,2510.2,4.38279]
[1729713345724,3.42285,2510.8,2510.4,0.39876]
[1729713345725,3.11,2510.5,2510.4,0.39876]
[1729713346025,3.11,2510.5,2510.4,3.60656]
[1729713348026,0.39873,2510.6,2510.5,0.39872]
[1729713348427,4.42596677,2510.7,2510.6,0.39872]
[1729713348627,3.50868,2510.9,2510.6,3.9832]
[1729713348934,3.50868,2510.9,2510.8,0.39869]
[1729713349321,3.11,2510.9,2510.8,0.39869]
[1729713349530,3.50868,2510.9,2510.8,0.39869]
[1729713351927,3.11,2510.9,2510.8,0.39869]
[1729713352127,3.50868,2510.9,2510.8,0.39869]
[1729713352324,3.11,2510.9,2510.8,0.39869]
[1729713352528,3.11,2511.1,2511.0,0.39866]
[1729713352824,3.50865,2511.1,2511.0,0.39866]
[1729713353635,3.11,2511.3,2511.0,7.1902]
[1729713353825,3.50863,2511.3,2511.2,0.39861]
[1729713354528,3.11,2511.3,2511.2,0.39861]
[1729713354729,3.50861,2511.3,2511.2,0.39861]
[1729713354929,0.39864,2511.2,2511.1,0.39863]
[1729713355133,3.50864,2511.2,2511.1,0.39863]
[1729713355730,3.11,2511.2,2511.1,0.39863]
[1729713357637,3.2078,2512.6,2512.2,0.99615]
[1729713357853,6.3178,2513.3,2512.5,0.99606]
[1729713358136,4.59971544,2513.2,2513.1,3.2078]
[1729713358333,4.59971544,2513.2,2513.1,3.60613]
[1729713358940,3.50829,2513.4,2513.2,0.3983]
[1729713359235,3.50829,2513.4,2513.3,0.3983]
[1729713359441,3.11,2513.4,2513.1,3.2078]
[1729713359643,3.50829,2513.4,2513.2,0.39831]
[1729713359834,3.50828,2513.4,2513.2,0.3983]
[1729713360035,3.11,2513.4,2513.2,0.3983]
[1729713360336,3.11,2513.4,2513.3,0.3983]
[1729713361334,3.11,2513.4,2513.2,0.39831]
[1729713361530,3.50829,2513.4,2513.2,0.39831]
[1729713362139,0.3983,2513.3,2513.2,0.39831]
[1729713362336,3.11,2513.4,2513.2,0.39831]
[1729713362538,4.82666604,2513.3,2513.2,0.39831]
[1729713362737,4.42836604,2513.3,2513.2,0.39831]
[1729713364746,45.22836604,2513.3,2513.2,0.39831]
[1729713364937,40.8,2513.3,2513.2,0.39831]
[1729713367546,41.1983,2513.3,2513.1,3.2078]
[1729713367738,3.11,2513.2,2513.1,3.60613]
[1729713371446,40.8,2513.3,2513.2,0.39831]
[1729713372349,41.1983,2513.3,2513.2,0.39831]
[1729713372543,40.8,2513.3,2513.2,0.39831]
[1729713373245,41.1983,2513.3,2513.2,0.39831]
[1729713373447,40.8,2513.3,2513.2,0.39831]
[1729713373648,41.1983,2513.3,2513.2,0.39831]
[1729713373947,40.8,2513.3,2513.2,0.39831]
[1729713374140,41.1983,2513.3,2513.2,0.39831]
[1729713374453,40.8,2513.3,2513.2,0.39831]
[1729713374650,0.3983,2513.3,2513.2,0.39831]
[1729713374845,0.39829,2513.4,2513.3,0.39829]
[1729713375046,41.19829,2513.4,2513.3,0.39829]
[1729713375246,45.59077673,2513.4,2513.3,0.39829]
[1729713377049,4.39248673,2513.4,2513.3,0.39829]
[1729713377352,4.79076673,2513.4,2513.3,0.39829]
[1729713377948,4.39248673,2513.4,2513.2,3.2078]
[1729713378149,3.11,2513.3,2512.9,4.718]
[1729713378349,3.50831,2513.3,2513.2,0.39831]
[1729713378648,7.82208259,2513.3,2513.2,0.39831]
[1729713378947,11.40297259,2513.3,2512.6,3.2078]
[1729713379152,3.50836,2513.0,2512.9,0.39835]
[1729713379356,0.39837,2512.9,2512.8,0.39836]
[1729713379551,7.34742221,2513.0,2512.6,3.2078]
[1729713379753,0.39838,2512.8,2512.7,0.39838]
[1729713379958,3.50839,2512.8,2512.7,0.39838]
[1729713380255,4.64263258,2512.8,2512.7,0.39838]
[1729713381156,4.24424258,2512.8,2512.7,0.39838]
[1729713381657,0.39838,2512.8,2512.7,0.39838]
[1729713382059,4.95113381,2512.8,2512.7,0.39838]
[1729713383852,4.55275381,2512.8,2512.3,4.20394]
[1729713384057,3.11,2512.4,2511.7,3.2078]
[1729713384255,3.2078,2512.5,2512.3,0.39845]
[1729713384256,3.11,2512.5,2512.3,0.39845]
[1729713384459,3.11,2512.5,2512.0,4.20404]
[1729713384460,4.01988095,2512.3,2512.2,0.39847]
[1729713384659,0.39839,2512.7,2512.2,3.11]
[1729713384953,6.3081,2513.2,2512.4,6.3178]
[1729713385159,6.3081,2513.2,2512.8,0.39836]
[1729713385160,9.4181,2513.2,2512.8,0.39836]
[1729713385361,4.21130568,2512.9,2512.8,0.39836]
[1729713385554,0.39836,2513.0,2512.5,2.44515]
[1729713385850,9.4181,2513.2,2512.5,2.44515]
[1729713386053,5.14902,2513.2,2513.1,0.39833]
[1729713386254,7.8607,2513.2,2512.7,4.20377]
[1729713386456,10.72387624,2513.2,2513.1,0.39833]
[1729713386856,11.12218624,2513.2,2513.1,0.39833]
[1729713387457,10.72387624,2513.2,2513.1,0.39833]
[1729713387866,10.72387624,2513.2,2512.7,3.2078]
[1729713388262,0.39834,2513.1,2513.0,0.39833]
[1729713388571,11.12219624,2513.2,2513.1,0.39833]
[1729713389161,10.72387624,2513.2,2513.1,0.39833]
[1729713389362,11.12218624,2513.2,2513.1,0.39833]
[1729713391064,10.72387624,2513.2,2512.7,4.20377]
[1729713391275,0.39833,2513.1,2513.0,0.39833]
[1729713391564,11.12219624,2513.2,2513.1,0.39833]
[1729713394368,7.51607624,2513.2,2512.6,1.57155096]
[1729713394572,0.39834,2513.1,2513.0,0.39834]
[1729713395367,7.51607624,2513.2,2512.7,3.2078]
[1729713395560,0.39834,2513.1,2513.0,0.39834]
[1729713399165,0.39835,2513.0,2512.9,0.39835]
[1729713399476,7.46282915,2513.0,2512.9,0.39836]
[1729713399971,7.86116915,2513.0,2512.9,0.39836]
[1729713400366,7.46282915,2513.0,2512.9,0.39836]
[1729713401276,3.11,2513.0,2512.9,0.39836]
[1729713405477,0.39834,2513.1,2513.0,0.39834]
[1729713414679,0.39837,2512.9,2512.8,0.39836]
[1729713414885,3.50837,2512.9,2512.8,0.39836]
[1729713415084,0.39838,2512.8,2512.7,3.60618]
[1729713416583,3.11,2512.9,2512.7,3.2078]
[1729713416887,3.50837,2512.9,2512.8,0.39838]
[1729713419987,3.49316,2513.0,2512.7,3.2078]
[1729713420285,3.49316,2513.0,2512.9,0.39836]
[1729713421681,1.6018,2513.0,2512.9,0.39836]
[1729713421986,3.2078,2513.4,2513.3,0.3983]
[1729713422183,3.50821,2513.9,2513.8,0.39822]
[1729713422492,3.11,2513.9,2513.8,0.39822]
[1729713422687,1.5668,2514.1,2513.5,2.51005]
[1729713422902,0.3982,2514.0,2513.9,0.3982]
[1729713423186,40.8,2514.2,2513.6,4.97402]
[1729713423485,0.39798,2515.3,2515.1,0.398]
[1729713423680,7.8112,2515.7,2514.9,3.11]
[1729713423881,7.8112,2515.7,2514.8,3.2078]
[1729713423882,4.50993567,2515.5,2514.8,3.2078]
[1729713424089,4.50993567,2515.5,2515.2,0.39799]
[1729713424090,0.39796,2515.5,2515.2,0.39799]
[1729713424294,45.5012,2515.7,2514.9,3.11]
[1729713424595,4.22406951,2515.4,2514.9,3.11]
[1729713424783,0.39797,2515.4,2515.1,0.398]
[1729713425387,45.5012,2515.7,2514.9,3.11]
[1729713425584,0.39797,2515.4,2515.2,0.398]
[1729713425887,4.43065837,2515.6,2515.2,0.39799]
[1729713426091,0.39797,2515.4,2515.1,0.398]
[1729713426591,0.39799,2515.3,2515.1,0.39801]
[1729713427389,0.39799,2515.3,2515.0,0.39802]
[1729713427788,4.43065837,2515.6,2514.9,1.571]
[1729713427986,0.39797,2515.4,2515.2,0.39799]
[1729713428189,0.39797,2515.4,2515.1,0.398]
[1729713428391,0.39797,2515.4,2514.9,3.11]
[1729713428585,0.39797,2515.4,2515.2,0.39799]
[1729713429094,4.43065837,2515.6,2514.9,3.11]
[1729713429393,0.39797,2515.4,2515.1,0.39801]
[1729713430389,4.43065837,2515.6,2515.0,0.39802]
[1729713430586,0.398,2515.2,2515.0,0.39802]
[1729713430783,0.39799,2515.3,2515.0,0.39802]
[1729713430983,0.39797,2515.4,2515.1,0.398]
[1729713431399,0.398,2515.2,2515.0,0.39802]
[1729713431692,0.39797,2515.4,2515.1,0.39801]
[1729713431895,4.43065837,2515.6,2515.0,0.39802]
[1729713432088,0.39797,2515.4,2515.1,0.39801]
[1729713433695,0.39799,2515.3,2515.1,0.39801]
[1729713433893,4.43065837,2515.6,2514.9,3.11]
[1729713434090,0.39801,2515.1,2514.9,0.39803]
[1729713434697,4.10487,2515.6,2514.8,3.2078]
[1729713434904,6.3178,2515.4,2514.7,1.553]
[1729713435106,6.3178,2515.4,2514.4,3.2078]
[1729713435107,0.3981,2514.6,2514.4,3.60592]
[1729713435399,4.20284,2515.1,2514.7,0.39807]
[1729713435400,0.39805,2514.9,2514.7,0.39807]
[1729713435701,45.43795105,2514.8,2514.5,3.11]
[1729713435892,45.43795105,2514.8,2514.6,0.39808]
[1729713436093,41.19806,2514.8,2514.6,0.39808]
[1729713436389,4.2364309,2514.7,2514.6,0.39809]
[1729713437596,40.8,2514.8,2514.7,0.39808]
[1729713437787,40.8,2514.8,2514.7,3.50808]
[1729713438097,0.39803,2515.0,2514.7,3.11]
[1729713438305,0.39803,2515.0,2514.8,0.39806]
[1729713438498,4.54902774,2514.9,2514.8,0.39806]
[1729713438698,45.34902774,2514.9,2514.8,0.39806]
[1729713438990,45.74706774,2514.9,2514.8,0.39806]
[1729713439195,45.34902774,2514.9,2514.8,0.39806]
[1729713439595,1.89711,2515.1,2515.0,0.39803]
[1729713439897,1.89712,2515.1,2515.0,0.39803]
[1729713440097,42.69712,2515.1,2515.0,0.39803]
[1729713440701,0.39803,2515.0,2514.9,0.39804]
[1729713440900,42.69712,2515.1,2514.9,0.39804]
[1729713441102,0.39803,2515.0,2514.9,0.39804]
[1729713442809,0.39803,2515.0,2514.6,3.2078]
[1729713443199,0.39809,2514.7,2514.5,0.39809]
[1729713443509,0.39809,2514.6,2514.5,0.39809]
[1729713443706,3.11,2514.9,2514.5,0.39809]
[1729713443901,4.30388934,2514.8,2514.5,0.39809]
[1729713444205,4.30388934,2514.8,2514.3,3.2078]
[1729713444509,4.70195934,2514.8,2514.3,3.2078]
[1729713444806,0.39807,2514.8,2514.7,0.39808]
[1729713445011,0.39809,2514.7,2514.6,0.39809]
[1729713445306,4.87844332,2514.7,2514.6,0.39809]
[1729713445501,0.39809,2514.7,2514.6,0.39809]
[1729713446302,0.3981,2514.6,2514.5,0.3981]
[1729713446604,0.39809,2514.7,2514.6,0.39809]
[1729713446901,3.11,2515.0,2514.3,3.2078]
[1729713447102,0.39809,2514.7,2514.6,0.39809]
[1729713447309,0.39807,2514.8,2514.7,0.39807]
[1729713448209,0.39809,2514.7,2514.6,0.39808]
[1729713448408,7.61167071,2515.0,2514.3,4.20314]
[1729713448707,0.39808,2514.7,2514.6,0.39808]
[1729713448902,0.3981,2514.6,2514.5,0.3981]
[1729713449406,3.11,2514.8,2514.3,3.2078]
[1729713449605,0.39812,2514.5,2514.4,0.39812]
[1729713450309,0.3981,2514.6,2514.5,0.3981]
[1729713451207,0.39809,2514.6,2514.5,0.3981]
[1729713451405,0.39812,2514.4,2514.3,3.2078]
[1729713451603,0.39817,2514.1,2514.0,3.60598]
[1729713452003,0.39817,2514.1,2514.0,3.2078]
[1729713452204,4.84520854,2514.1,2514.0,3.2078]
[1729713452409,7.95520854,2514.1,2514.0,3.2078]
[1729713454309,7.95520854,2514.1,2514.0,3.60599]
[1729713454907,7.95520854,2514.1,2514.0,3.2078]
[1729713455212,4.84520854,2514.1,2514.0,3.2078]
[1729713455904,4.84520854,2514.1,2514.0,3.60599]
[1729713457912,4.84520854,2514.1,2514.0,3.2078]
[1729713459311,4.84520854,2514.1,2514.0,3.60599]
[1729713460009,4.84520854,2514.1,2514.0,3.2078]
[1729713460208,4.84520854,2514.1,2514.0,3.60599]
[1729713461612,4.84520854,2514.1,2514.0,0.39819]
[1729713461912,0.39821,2514.0,2513.9,0.39819]
[1729713463816,4.44703854,2514.1,2513.6,4.7608]
[1729713464020,0.39822,2513.9,2513.8,0.39821]
[1729713464212,3.11,2513.9,2513.6,3.2078]
[1729713464416,0.39823,2513.7,2513.6,3.60604]
[1729713465114,5.01562866,2513.7,2513.6,3.60604]
[1729713465721,0.39826,2513.6,2513.5,0.39826]
[1729713468614,0.39827,2513.6,2513.5,0.39826]
[1729713469124,0.39828,2513.5,2513.4,0.39827]
[1729713470613,4.86636391,2513.6,2513.5,0.39827]
[1729713471023,4.46809391,2513.6,2513.5,0.39827]
[1729713472515,1.4471,2513.7,2513.5,0.39827]
[1729713472516,1.4471,2513.7,2513.5,3.11]
[1729713472814,3.606,2514.0,2513.9,0.3982]
[1729713473014,0.39823,2513.8,2513.7,0.39822]
[1729713473622,0.39821,2513.9,2513.8,0.39821]
[1729713474123,4.79242401,2513.9,2513.8,0.39821]
[1729713475720,4.79242401,2513.9,2513.7,0.39822]
[1729713475721,0.39824,2513.8,2513.7,0.39822]
[1729713476116,4.16228336,2513.8,2513.2,3.2078]
[1729713476315,0.39825,2513.7,2513.6,0.39824]
[1729713477417,4.56052336,2513.8,2513.7,0.39823]
[1729713479226,4.16228336,2513.8,2513.7,0.39823]
[1729713479422,0.39821,2513.9,2513.8,0.39822]
[1729713480519,41.1982,2514.0,2513.9,0.3982]
[1729713481022,45.37877806,2514.0,2513.9,0.3982]
[1729713483724,0.39821,2513.9,2513.8,0.3982]